[Event "NJSK 2026 Jeugd C"]
[Site "Helmond, Netherlands"]
[Date "2026.05.01"]
[Round "9.11"]
[White "Shaikh, Rushaan"]
[Black "Nair, Pranav Prasobh"]
[Result "1/2-1/2"]
[TimeControl "90min/40moves + 30sec/move"]
[WhiteTitle "-"]
[BlackTitle "-"]
[WhiteFideId "40113604"]
[BlackFideId "40109135"]
[WhiteElo "1842"]
[BlackElo "1747"]

1. d4 {[%clk 01:30:57]} {[%emt 00:00:02]} Nf6 {[%clk 01:30:55]} {[%emt
00:00:04]} 2. Bg5 {[%clk 01:31:23]} {[%emt 00:00:05]} d5 {[%clk 01:31:20]}
{[%emt 00:00:05]} 3. Bxf6 {[%clk 01:31:44]} {[%emt 00:00:09]} exf6 {[%clk
01:31:30]} {[%emt 00:00:21]} 4. e3 {[%clk 01:32:08]} {[%emt 00:00:05]} Bd6
{[%clk 01:31:51]} {[%emt 00:00:09]} 5. c4 {[%clk 01:32:32]} {[%emt 00:00:05]}
dxc4 {[%clk 01:32:16]} {[%emt 00:00:07]} 6. Bxc4 {[%clk 01:32:56]} {[%emt
00:00:05]} O-O {[%clk 01:31:46]} {[%emt 00:01:00]} 7. Nf3 {[%clk 01:33:15]}
{[%emt 00:00:11]} Nd7 {[%clk 01:31:20]} {[%emt 00:00:56]} 8. O-O {[%clk
01:33:18]} {[%emt 00:00:27]} g6 {[%clk 01:31:04]} {[%emt 00:00:46]} 9. Nc3
{[%clk 01:32:55]} {[%emt 00:00:52]} f5 {[%clk 01:30:03]} {[%emt 00:01:31]} 10.
Qd3 {[%clk 01:32:12]} {[%emt 00:01:14]} Nf6 {[%clk 01:28:14]} {[%emt 00:02:17]}
11. Rac1 {[%clk 01:28:15]} {[%emt 00:04:29]} c6 {[%clk 01:20:19]} {[%emt
00:08:25]} 12. a4 {[%clk 01:26:48]} {[%emt 00:01:57]} Re8 {[%clk 01:04:43]}
{[%emt 00:16:06]} 13. Rfd1 {[%clk 01:21:09]} {[%emt 00:06:08]} a6 {[%clk
00:57:48]} {[%emt 00:07:26]} 14. Ra1 {[%clk 01:15:34]} {[%emt 00:06:05]} b6
{[%clk 00:55:41]} {[%emt 00:02:37]} 15. h3 {[%clk 01:11:34]} {[%emt 00:04:30]}
Bb7 {[%clk 00:45:23]} {[%emt 00:10:47]} 16. d5 {[%clk 01:03:11]} {[%emt
00:08:52]} c5 {[%clk 00:43:50]} {[%emt 00:02:04]} 17. Nd2 {[%clk 00:53:12]}
{[%emt 00:10:29]} Be5 {[%clk 00:40:12]} {[%emt 00:04:09]} 18. Nf3 {[%clk
00:46:51]} {[%emt 00:06:49]} Qd6 {[%clk 00:38:08]} {[%emt 00:02:35]} 19. Rab1
{[%clk 00:40:47]} {[%emt 00:06:33]} Ne4 {[%clk 00:23:11]} {[%emt 00:15:28]} 20.
Nxe5 {[%clk 00:39:44]} {[%emt 00:01:34]} Rxe5 {[%clk 00:23:07]} {[%emt
00:00:32]} 21. Nxe4 {[%clk 00:39:24]} {[%emt 00:00:51]} fxe4 {[%clk 00:18:23]}
{[%emt 00:05:14]} 22. Qd2 {[%clk 00:35:05]} {[%emt 00:04:43]} b5 {[%clk
00:14:10]} {[%emt 00:04:51]} 23. axb5 {[%clk 00:32:54]} {[%emt 00:02:41]} axb5
{[%clk 00:13:37]} {[%emt 00:01:03]} 24. Bxb5 {[%clk 00:33:14]} {[%emt
00:00:10]} Rxd5 {[%clk 00:13:50]} {[%emt 00:00:15]} 25. Qc2 {[%clk 00:33:19]}
{[%emt 00:00:24]} Rd8 {[%clk 00:10:53]} {[%emt 00:03:30]} 26. Rxd5 {[%clk
00:30:57]} {[%emt 00:02:52]} Qxd5 {[%clk 00:11:10]} {[%emt 00:00:14]} 27. Rc1
{[%clk 00:30:41]} {[%emt 00:00:46]} Bc6 {[%clk 00:06:32]} {[%emt 00:05:07]} 28.
Be2 {[%clk 00:20:03]} {[%emt 00:11:05]} Rb8 {[%clk 00:01:53]} {[%emt 00:05:11]}
29. Rd1 {[%clk 00:17:48]} {[%emt 00:02:46]} Qe5 {[%clk 00:01:02]} {[%emt
00:01:21]} 30. b3 {[%clk 00:16:50]} {[%emt 00:01:28]} Qe7 {[%clk 00:00:36]}
{[%emt 00:00:56]} 31. Bc4 {[%clk 00:13:47]} {[%emt 00:03:32]} Bb5 {[%clk
00:00:41]} {[%emt 00:00:25]} 32. Bxb5 {[%clk 00:10:19]} {[%emt 00:03:58]} Rxb5
{[%clk 00:01:01]} {[%emt 00:00:11]} 33. Qc3 {[%clk 00:10:38]} {[%emt 00:00:09]}
Rb8 {[%clk 00:00:35]} {[%emt 00:00:57]} 34. Rd5 {[%clk 00:10:37]} {[%emt
00:00:30]} Rc8 {[%clk 00:00:34]} {[%emt 00:00:33]} 35. Re5 {[%clk 00:09:45]}
{[%emt 00:01:21]} Qb7 {[%clk 00:00:34]} {[%emt 00:00:31]} 36. Qc4 {[%clk
00:09:19]} {[%emt 00:00:55]} Rb8 {[%clk 00:00:35]} {[%emt 00:00:30]} 37. Rxc5
{[%clk 00:08:37]} {[%emt 00:01:12]} Qxb3 {[%clk 00:00:34]} {[%emt 00:00:31]} 38.
Rc8+ {[%clk 00:08:58]} {[%emt 00:00:07]} Kg7 {[%clk 00:00:57]} {[%emt
00:00:09]} 39. Qd4+ {[%clk 00:09:15]} {[%emt 00:00:13]} Kh6 {[%clk 00:01:01]}
{[%emt 00:00:26]} 40. Rxb8 {[%clk 00:09:38]} {[%emt 00:00:08]} Qxb8 {[%clk
00:01:22]} {[%emt 00:00:08]} 41. Qxe4 {[%clk 00:10:04]} {[%emt 00:00:05]} Qb3
{[%clk 00:01:26]} {[%emt 00:00:24]} 42. g4 {[%clk 00:09:32]} {[%emt 00:01:03]}
Qd1+ {[%clk 00:01:04]} {[%emt 00:00:53]} 43. Kg2 {[%clk 00:09:53]} {[%emt
00:00:08]} Qd8 {[%clk 00:00:43]} {[%emt 00:00:51]} 44. Kg3 {[%clk 00:09:20]}
{[%emt 00:01:03]} g5 {[%clk 00:00:41]} {[%emt 00:00:32]} 45. f4 {[%clk
00:08:38]} {[%emt 00:01:12]} gxf4+ {[%clk 00:00:52]} {[%emt 00:00:19]} 46. exf4
{[%clk 00:08:35]} {[%emt 00:00:33]} Qb6 {[%clk 00:00:44]} {[%emt 00:00:39]} 47.
g5+ {[%clk 00:07:45]} {[%emt 00:01:20]} Kg7 {[%clk 00:01:06]} {[%emt 00:00:08]}
48. Qe5+ {[%clk 00:07:44]} {[%emt 00:00:30]} Kg8 {[%clk 00:00:48]} {[%emt
00:00:48]} 49. Qe2 {[%clk 00:03:50]} {[%emt 00:04:23]} Qc6 {[%clk 00:00:40]}
{[%emt 00:00:40]} 50. Qf3 {[%clk 00:03:21]} {[%emt 00:00:58]} Qxf3+ {[%clk
00:00:33]} {[%emt 00:00:38]} 51. Kxf3 {[%clk 00:03:50]} {[%emt 00:00:01]} f6
{[%clk 00:00:49]} {[%emt 00:00:13]} 52. Kg4 {[%clk 00:03:18]} {[%emt 00:01:02]}
fxg5 {[%clk 00:01:11]} {[%emt 00:00:08]} 53. Kxg5 {[%clk 00:03:25]} {[%emt
00:00:23]} Kg7 {[%clk 00:01:33]} {[%emt 00:00:07]} 54. h4 {[%clk 00:02:33]}
{[%emt 00:01:23]} Kf7 {[%clk 00:01:19]} {[%emt 00:00:44]} 55. Kh6 {[%clk
00:02:47]} {[%emt 00:00:17]} Kg8 {[%clk 00:01:39]} {[%emt 00:00:10]} 56. h5
{[%clk 00:01:53]} {[%emt 00:01:22]} Kh8 {[%clk 00:01:52]} {[%emt 00:00:17]} 57.
Kg5 {[%clk 00:02:15]} {[%emt 00:00:09]} Kg7 {[%clk 00:02:15]} {[%emt 00:00:07]}
58. h6+ {[%clk 00:02:37]} {[%emt 00:00:08]} Kf7 {[%clk 00:02:40]} {[%emt
00:00:06]} 59. Kf5 {[%clk 00:03:03]} {[%emt 00:00:03]} Ke7 {[%clk 00:03:03]}
{[%emt 00:00:08]} 60. Ke5 {[%clk 00:02:53]} {[%emt 00:00:38]} Kf7 {[%clk
00:03:20]} {[%emt 00:00:15]} 61. f5 {[%clk 00:01:55]} {[%emt 00:01:28]} Ke7
{[%clk 00:03:44]} {[%emt 00:00:06]} 62. f6+ {[%clk 00:02:03]} {[%emt 00:00:21]}
Kf7 {[%clk 00:03:52]} {[%emt 00:00:23]} 63. Kf5 {[%clk 00:02:25]} {[%emt
00:00:08]} Kf8 {[%clk 00:04:06]} {[%emt 00:00:14]} 64. Ke6 {[%clk 00:02:09]}
{[%emt 00:00:48]} Ke8 {[%clk 00:04:30]} {[%emt 00:00:05]} 65. f7+ {[%clk
00:02:07]} {[%emt 00:00:32]} Kf8 {[%clk 00:04:56]} {[%emt 00:00:05]} 66. Kf6
{[%clk 00:02:32]} {[%emt 00:00:06]} 1/2-1/2

[Event "NJSK 2026 Jeugd C"]
[Site "Helmond, Netherlands"]
[Date "2026.05.01"]
[Round "9.12"]
[White "Koppenens, Oscar"]
[Black "De Wit, Jim"]
[Result "1-0"]
[TimeControl "90min/40moves + 30sec/move"]
[WhiteTitle "-"]
[BlackTitle "-"]
[WhiteFideId "1087940"]
[BlackFideId "1097326"]
[WhiteElo "2036"]
[BlackElo "1749"]

1. e4 {[%clk 01:30:57]} {[%emt 00:00:02]} c5 {[%clk 01:30:59]} {[%emt
00:00:02]} 2. Nf3 {[%clk 01:31:15]} {[%emt 00:00:11]} a6 {[%clk 01:31:23]}
{[%emt 00:00:07]} 3. c4 {[%clk 01:31:39]} {[%emt 00:00:06]} Nc6 {[%clk
01:31:40]} {[%emt 00:00:12]} 4. d4 {[%clk 01:32:05]} {[%emt 00:00:04]} cxd4
{[%clk 01:32:06]} {[%emt 00:00:04]} 5. Nxd4 {[%clk 01:32:31]} {[%emt 00:00:04]}
e5 {[%clk 01:32:29]} {[%emt 00:00:07]} 6. Nf5 {[%clk 01:32:39]} {[%emt
00:00:22]} d5 {[%clk 01:32:53]} {[%emt 00:00:07]} 7. cxd5 {[%clk 01:32:09]}
{[%emt 00:00:59]} Bxf5 {[%clk 01:33:10]} {[%emt 00:00:13]} 8. exf5 {[%clk
01:32:34]} {[%emt 00:00:05]} Nd4 {[%clk 01:33:31]} {[%emt 00:00:09]} 9. Nc3
{[%clk 01:31:55]} {[%emt 00:01:09]} Nf6 {[%clk 01:33:49]} {[%emt 00:00:12]} 10.
Bd3 {[%clk 01:32:18]} {[%emt 00:00:07]} Nxd5 {[%clk 01:32:20]} {[%emt
00:01:59]} 11. Be4 {[%clk 01:32:33]} {[%emt 00:00:15]} Nxc3 {[%clk 01:29:21]}
{[%emt 00:03:29]} 12. bxc3 {[%clk 01:32:08]} {[%emt 00:00:55]} Nc6 {[%clk
01:29:16]} {[%emt 00:00:35]} 13. Qxd8+ {[%clk 01:29:16]} Rxd8 {[%clk 01:29:32]}
{[%emt 00:03:37]} 14. Rb1 {[%clk 01:29:42]} {[%emt 00:00:04]} Na5 {[%clk
01:22:02]} {[%emt 00:08:00]} 15. Bxb7 {[%clk 01:27:53]} {[%emt 00:02:18]} Rb8
{[%clk 01:22:05]} {[%emt 00:00:27]} 16. Be4 {[%clk 01:28:16]} {[%emt 00:00:06]}
Rc8 {[%clk 01:21:25]} {[%emt 00:01:10]} 17. O-O {[%clk 01:21:41]} {[%emt
00:07:06]} Bc5 {[%clk 01:17:23]} {[%emt 00:04:33]} 18. Bd3 {[%clk 01:15:28]}
{[%emt 00:06:42]} Ra8 {[%clk 01:16:18]} {[%emt 00:01:35]} 19. Bxa6 {[%clk
01:14:25]} {[%emt 00:01:34]} O-O {[%clk 01:16:33]} {[%emt 00:00:14]} 20. Bb5
{[%clk 01:14:32]} {[%emt 00:00:23]} Rfc8 {[%clk 01:16:39]} {[%emt 00:00:23]} 21.
a4 {[%clk 01:11:59]} {[%emt 00:03:04]} Nb7 {[%clk 01:15:33]} {[%emt 00:01:36]}
22. Re1 {[%clk 01:11:26]} {[%emt 00:01:03]} Bd6 {[%clk 01:14:54]} {[%emt
00:01:09]} 23. Bb2 {[%clk 01:10:01]} {[%emt 00:01:54]} f6 {[%clk 01:12:45]}
{[%emt 00:02:40]} 24. Red1 {[%clk 01:09:59]} {[%emt 00:00:32]} Bf8 {[%clk
01:12:54]} {[%emt 00:00:21]} 25. Ra1 {[%clk 01:09:02]} {[%emt 00:01:28]} Nd6
{[%clk 01:12:18]} {[%emt 00:01:06]} 26. Bd7 {[%clk 01:08:03]} {[%emt 00:01:29]}
Rd8 {[%clk 01:11:21]} {[%emt 00:01:26]} 27. Be6+ {[%clk 01:08:25]} {[%emt
00:00:07]} Kh8 {[%clk 01:11:46]} {[%emt 00:00:05]} 28. c4 {[%clk 01:08:10]}
{[%emt 00:00:46]} Rdb8 {[%clk 01:10:04]} {[%emt 00:02:11]} 29. Bc3 {[%clk
01:04:29]} {[%emt 00:04:12]} Ne4 {[%clk 01:09:42]} {[%emt 00:00:52]} 30. Be1
{[%clk 01:04:51]} {[%emt 00:00:08]} Nc5 {[%clk 01:09:55]} {[%emt 00:00:17]} 31.
a5 {[%clk 01:01:15]} {[%emt 00:04:06]} Nxe6 {[%clk 01:07:12]} {[%emt 00:03:13]}
32. fxe6 {[%clk 01:01:41]} {[%emt 00:00:04]} Ra6 {[%clk 01:07:24]} {[%emt
00:00:18]} 33. Rdb1 {[%clk 00:59:17]} {[%emt 00:02:54]} Rba8 {[%clk 01:06:20]}
{[%emt 00:01:35]} 34. Bb4 {[%clk 00:55:49]} {[%emt 00:03:58]} Bxb4 {[%clk
01:05:50]} {[%emt 00:01:00]} 35. Rxb4 {[%clk 00:56:14]} {[%emt 00:00:04]} Rxe6
{[%clk 01:06:11]} {[%emt 00:00:09]} 36. a6 {[%clk 00:56:37]} {[%emt 00:00:07]}
Rd8 {[%clk 01:05:18]} {[%emt 00:01:23]} 37. a7 {[%clk 00:54:59]} {[%emt
00:02:08]} Ra6 {[%clk 01:04:46]} {[%emt 00:01:02]} 38. Rbb1 {[%clk 00:52:30]}
{[%emt 00:02:59]} Rxa1 {[%clk 01:04:50]} {[%emt 00:00:26]} 39. Rxa1 {[%clk
00:52:56]} {[%emt 00:00:05]} Ra8 {[%clk 01:05:07]} {[%emt 00:00:12]} 40. Rb1
{[%clk 00:53:22]} {[%emt 00:00:03]} 1-0

[Event "NJSK 2026 Jeugd C"]
[Site "Helmond, Netherlands"]
[Date "2026.05.01"]
[Round "9.13"]
[White "Nguyen, Paul"]
[Black "Ngangbam, Chingthang"]
[Result "0-1"]
[TimeControl "90min/40moves + 30sec/move"]
[WhiteTitle "-"]
[BlackTitle "-"]
[WhiteFideId "1095072"]
[BlackFideId "1086510"]
[WhiteElo "1845"]
[BlackElo "1937"]

1. e4 {[%clk 01:30:58]} {[%emt 00:00:02]} c5 {[%clk 01:30:54]} {[%emt
00:00:06]} 2. Nf3 {[%clk 01:31:25]} {[%emt 00:00:03]} Nc6 {[%clk 01:31:18]}
{[%emt 00:00:06]} 3. d4 {[%clk 01:31:51]} {[%emt 00:00:04]} cxd4 {[%clk
01:31:44]} {[%emt 00:00:05]} 4. Nxd4 {[%clk 01:32:17]} {[%emt 00:00:03]} Nf6
{[%clk 01:32:05]} {[%emt 00:00:08]} 5. Nc3 {[%clk 01:32:43]} {[%emt 00:00:05]}
e5 {[%clk 01:32:28]} {[%emt 00:00:06]} 6. Nf3 {[%clk 01:32:56]} {[%emt
00:00:17]} Bb4 {[%clk 01:32:14]} {[%emt 00:00:44]} 7. Bg5 {[%clk 01:32:25]}
{[%emt 00:01:02]} Bxc3+ {[%clk 01:09:24]} {[%emt 00:23:20]} 8. bxc3 {[%clk
01:32:48]} {[%emt 00:00:08]} h6 {[%clk 01:09:47]} {[%emt 00:00:06]} 9. Bxf6
{[%clk 01:32:51]} {[%emt 00:00:27]} Qxf6 {[%clk 01:10:11]} {[%emt 00:00:06]} 10.
Bc4 {[%clk 01:32:24]} {[%emt 00:00:57]} d6 {[%clk 01:10:06]} {[%emt 00:00:35]}
11. h3 {[%clk 01:32:47]} {[%emt 00:00:06]} O-O {[%clk 01:10:05]} {[%emt
00:00:32]} 12. Qe2 {[%clk 01:31:53]} {[%emt 00:01:24]} Qg6 {[%clk 01:07:58]}
{[%emt 00:02:36]} 13. O-O-O {[%clk 01:26:40]} {[%emt 00:05:44]} Be6 {[%clk
01:04:19]} {[%emt 00:04:09]} 14. Bb3 {[%clk 01:25:16]} {[%emt 00:01:54]} Rfd8
{[%clk 01:03:29]} {[%emt 00:01:20]} 15. g4 {[%clk 01:23:21]} {[%emt 00:02:24]}
Rac8 {[%clk 01:02:34]} {[%emt 00:01:25]} 16. Qe3 {[%clk 01:19:06]} {[%emt
00:04:45]} b5 {[%clk 00:51:49]} {[%emt 00:11:15]} 17. Nh4 {[%clk 01:15:39]}
{[%emt 00:03:57]} Qf6 {[%clk 00:50:58]} {[%emt 00:01:21]} 18. Nf5 {[%clk
01:16:05]} {[%emt 00:00:05]} Bxf5 {[%clk 00:49:59]} {[%emt 00:01:29]} 19. gxf5
{[%clk 01:16:29]} {[%emt 00:00:06]} b4 {[%clk 00:47:52]} {[%emt 00:02:37]} 20.
Rhg1 {[%clk 01:16:45]} {[%emt 00:00:14]} Kh7 {[%clk 00:46:09]} {[%emt
00:02:13]} 21. cxb4 {[%clk 01:14:00]} {[%emt 00:03:14]} Nxb4 {[%clk 00:41:14]}
{[%emt 00:05:25]} 22. Qxa7 {[%clk 01:14:08]} {[%emt 00:00:23]} d5 {[%clk
00:38:04]} {[%emt 00:03:41]} 23. Rg4 {[%clk 01:08:22]} {[%emt 00:06:15]} Nxc2
{[%clk 00:31:39]} {[%emt 00:06:55]} 24. Bxc2 {[%clk 01:00:26]} {[%emt
00:08:26]} Qc6 {[%clk 00:31:32]} {[%emt 00:00:36]} 25. Rd2 {[%clk 01:00:37]}
{[%emt 00:00:18]} Qc3 {[%clk 00:30:51]} {[%emt 00:01:12]} 26. Qb7 {[%clk
00:49:55]} {[%emt 00:11:12]} dxe4 {[%clk 00:28:50]} {[%emt 00:02:31]} 27. Re2
{[%clk 00:49:00]} {[%emt 00:01:25]} Qa3+ {[%clk 00:20:16]} {[%emt 00:09:04]} 28.
Qb2 {[%clk 00:48:56]} {[%emt 00:00:35]} Qd3 {[%clk 00:08:07]} {[%emt 00:12:40]}
29. Qxe5 {[%clk 00:48:01]} {[%emt 00:01:25]} Qd1+ {[%clk 00:08:28]} {[%emt
00:00:09]} 30. Kb2 {[%clk 00:48:21]} {[%emt 00:00:11]} Rb8+ {[%clk 00:08:53]}
{[%emt 00:00:05]} 31. Ka3 {[%clk 00:45:59]} {[%emt 00:02:51]} Ra8+ {[%clk
00:09:09]} {[%emt 00:00:15]} 32. Kb4 {[%clk 00:46:15]} {[%emt 00:00:13]} Rdb8+
{[%clk 00:08:51]} {[%emt 00:00:49]} 33. Kc5 {[%clk 00:46:22]} {[%emt 00:00:22]}
Ra5+ {[%clk 00:09:09]} {[%emt 00:00:13]} 34. Kc6 {[%clk 00:46:45]} {[%emt
00:00:06]} Rc8+ {[%clk 00:09:27]} {[%emt 00:00:12]} 35. Kb6 {[%clk 00:46:59]}
{[%emt 00:00:17]} Qd8+ {[%clk 00:09:29]} {[%emt 00:00:28]} 36. Kb7 {[%clk
00:47:12]} {[%emt 00:00:17]} Qd7+ {[%clk 00:09:47]} {[%emt 00:00:12]} 37. Kb6
{[%clk 00:47:36]} {[%emt 00:00:06]} Qa7# {[%clk 00:10:11]} {[%emt 00:00:06]}
0-1

[Event "NJSK 2026 Jeugd C"]
[Site "Helmond, Netherlands"]
[Date "2026.05.01"]
[Round "9.14"]
[White "Tkacenko, Kostia"]
[Black "Fu, Ziqing"]
[Result "0-1"]
[TimeControl "90min/40moves + 30sec/move"]
[WhiteTitle "-"]
[BlackTitle "-"]
[WhiteFideId "40120708"]
[BlackFideId "40109623"]
[WhiteElo "1552"]
[BlackElo "1810"]

1. e4 {[%clk 01:30:59]} {[%emt 16:20:37]} e5 {[%clk 01:30:29]} {[%emt
00:00:31]} 2. Nf3 {[%clk 01:31:25]} {[%emt 00:00:04]} Nc6 {[%clk 01:30:25]}
{[%emt 00:00:34]} 3. Bb5 {[%clk 01:31:50]} {[%emt 00:00:05]} a6 {[%clk
01:29:46]} {[%emt 00:01:10]} 4. Ba4 {[%clk 01:32:16]} {[%emt 00:00:04]} Nf6
{[%clk 01:29:39]} {[%emt 00:00:36]} 5. O-O {[%clk 01:32:40]} {[%emt 00:00:06]}
b5 {[%clk 01:28:59]} {[%emt 00:01:11]} 6. Bb3 {[%clk 01:33:05]} {[%emt
00:00:05]} Bc5 {[%clk 01:28:40]} {[%emt 00:00:47]} 7. d3 {[%clk 01:26:43]}
{[%emt 00:06:53]} h6 {[%clk 01:28:07]} {[%emt 00:01:00]} 8. h3 {[%clk
01:26:02]} {[%emt 00:01:14]} O-O {[%clk 01:27:55]} {[%emt 00:00:41]} 9. Be3
{[%clk 01:25:39]} {[%emt 00:00:54]} Bxe3 {[%clk 01:27:28]} {[%emt 00:00:57]} 10.
fxe3 {[%clk 01:26:06]} {[%emt 00:00:03]} d5 {[%clk 01:27:36]} {[%emt 00:00:22]}
11. exd5 {[%clk 01:25:05]} {[%emt 00:01:32]} Nxd5 {[%clk 01:27:41]} {[%emt
00:00:24]} 12. Bxd5 {[%clk 01:25:11]} {[%emt 00:00:23]} Qxd5 {[%clk 01:27:50]}
{[%emt 00:00:21]} 13. Nc3 {[%clk 01:23:23]} {[%emt 00:02:19]} Qd8 {[%clk
01:27:01]} {[%emt 00:01:18]} 14. e4 {[%clk 01:16:14]} {[%emt 00:07:40]} Be6
{[%clk 01:26:14]} {[%emt 00:01:16]} 15. Ne2 {[%clk 01:13:57]} {[%emt 00:02:48]}
Qd6 {[%clk 01:26:17]} {[%emt 00:00:26]} 16. Ng3 {[%clk 01:09:01]} {[%emt
00:05:27]} Rad8 {[%clk 01:26:32]} {[%emt 00:00:14]} 17. Qd2 {[%clk 01:07:36]}
{[%emt 00:01:55]} Nd4 {[%clk 01:26:11]} {[%emt 00:00:52]} 18. Kh2 {[%clk
01:05:09]} {[%emt 00:02:57]} c5 {[%clk 01:25:52]} {[%emt 00:00:48]} 19. c3
{[%clk 01:02:27]} {[%emt 00:03:13]} Nc6 {[%clk 01:25:25]} {[%emt 00:00:57]} 20.
Rfd1 {[%clk 01:01:14]} {[%emt 00:01:43]} Rd7 {[%clk 01:22:01]} {[%emt
00:03:52]} 21. Qf2 {[%clk 00:53:54]} {[%emt 00:07:51]} Rfd8 {[%clk 01:22:02]}
{[%emt 00:00:27]} 22. Ne1 {[%clk 00:52:22]} {[%emt 00:02:05]} Qe7 {[%clk
01:21:58]} {[%emt 00:00:34]} 23. Qf3 {[%clk 00:46:02]} {[%emt 00:06:50]} Rd6
{[%clk 01:18:55]} {[%emt 00:03:33]} 24. Nh1 {[%clk 00:40:57]} {[%emt 00:05:34]}
Qd7 {[%clk 01:17:54]} {[%emt 00:01:28]} 25. Nf2 {[%clk 00:40:55]} {[%emt
00:00:35]} Ne7 {[%clk 01:17:40]} {[%emt 00:00:45]} 26. g4 {[%clk 00:37:11]}
{[%emt 00:04:14]} Ng6 {[%clk 01:17:40]} {[%emt 00:00:30]} 27. Ng2 {[%clk
00:37:04]} {[%emt 00:00:37]} Qc6 {[%clk 01:16:44]} {[%emt 00:01:26]} 28. h4
{[%clk 00:30:31]} {[%emt 00:07:03]} c4 {[%clk 01:13:33]} {[%emt 00:03:41]} 29.
h5 {[%clk 00:30:44]} {[%emt 00:00:17]} Nf8 {[%clk 01:13:38]} {[%emt 00:00:25]}
30. Nh4 {[%clk 00:28:18]} {[%emt 00:02:57]} Nh7 {[%clk 01:12:55]} {[%emt
00:01:12]} 31. Nf5 {[%clk 00:27:13]} {[%emt 00:01:35]} R6d7 {[%clk 01:13:12]}
{[%emt 00:00:12]} 32. dxc4 {[%clk 00:23:43]} {[%emt 00:04:01]} Qxc4 {[%clk
01:12:31]} {[%emt 00:01:10]} 33. Ne3 {[%clk 00:22:52]} {[%emt 00:01:21]} Ng5
{[%clk 01:11:15]} {[%emt 00:01:46]} 34. Nxc4 {[%clk 00:21:20]} {[%emt
00:02:03]} Nxf3+ {[%clk 01:11:39]} {[%emt 00:00:07]} 35. Kg3 {[%clk 00:21:47]}
{[%emt 00:00:03]} Ng5 {[%clk 01:09:24]} {[%emt 00:02:45]} 36. Rxd7 {[%clk
00:20:25]} {[%emt 00:01:51]} Rxd7 {[%clk 01:09:21]} {[%emt 00:00:33]} 37. Nxe5
{[%clk 00:19:35]} {[%emt 00:01:20]} Rd2 {[%clk 01:07:43]} {[%emt 00:02:08]} 38.
b3 {[%clk 00:18:53]} {[%emt 00:01:13]} Rc2 {[%emt 00:02:33]} 39. Nfd3 {[%clk
00:09:56]} {[%emt 00:08:31]} Nxe4+ {[%clk 01:06:25]} {[%emt 00:00:43]} 40. Kf4
{[%clk 00:10:14]} {[%emt 00:00:11]} Nxc3 {[%clk 01:06:39]} {[%emt 00:00:16]} 41.
Nb4 {[%clk 00:10:08]} {[%emt 00:00:36]} Re2 {[%clk 01:05:51]} {[%emt 00:01:18]}
42. Nbd3 {[%clk 00:08:04]} {[%emt 00:02:34]} f6 {[%clk 01:05:03]} {[%emt
00:01:18]} 43. Nc6 {[%clk 00:07:59]} {[%emt 00:00:34]} Nd5+ {[%clk 01:05:16]}
{[%emt 00:00:17]} 44. Kf3 {[%clk 00:08:04]} {[%emt 00:00:24]} Re3+ {[%clk
01:05:31]} {[%emt 00:00:16]} 45. Kf2 {[%clk 00:08:26]} {[%emt 00:00:08]} Rxd3
{[%clk 01:05:52]} {[%emt 00:00:09]} 46. Re1 {[%clk 00:08:18]} {[%emt 00:00:39]}
Bxg4 {[%clk 01:05:55]} {[%emt 00:00:26]} 47. Re8+ {[%clk 00:08:23]} {[%emt
00:00:26]} Kf7 {[%clk 01:06:17]} {[%emt 00:00:08]} 48. Ra8 {[%clk 00:08:36]}
{[%emt 00:00:17]} Bxh5 {[%clk 01:05:53]} {[%emt 00:00:53]} 49. Rxa6 {[%clk
00:08:50]} {[%emt 00:00:16]} Rf3+ {[%clk 01:05:49]} {[%emt 00:00:35]} 50. Ke1
{[%clk 00:08:52]} {[%emt 00:00:21]} Re3+ {[%clk 01:05:36]} {[%emt 00:00:49]} 51.
Kf2 {[%clk 00:09:09]} {[%emt 00:00:12]} g5 {[%clk 01:05:16]} {[%emt 00:00:51]}
52. Ra7+ {[%clk 00:08:50]} {[%emt 00:00:48]} Kg6 {[%clk 01:05:21]} {[%emt
00:00:26]} 53. Ra5 {[%clk 00:08:41]} {[%emt 00:00:39]} Re2+ {[%clk 01:05:32]}
{[%emt 00:00:20]} 54. Kg3 {[%clk 00:08:42]} {[%emt 00:00:26]} Nf4 {[%clk
01:05:44]} {[%emt 00:00:20]} 55. Ne7+ {[%clk 00:08:39]} {[%emt 00:00:24]} Kf7
{[%clk 01:05:33]} {[%emt 00:00:50]} 56. Nf5 {[%clk 00:08:40]} {[%emt 00:00:30]}
Rg2# {[%emt 00:00:28]} 0-1